fUSD/lending_fUSD_20240922
["ID","MTS","AMOUNT","RATE_DAILY","PERIOD"]
[338902202,1727044232436,-2000.0,0.00012084,2]
[338902203,1727044232445,-499.99,0.00012084,2]
[338902204,1727044232454,-2388.0268357,0.00012084,2]
[338902205,1727044232463,-3797.01401566,0.00012084,2]
[338902206,1727044232473,-50348.54150373,0.00012084,2]
[338902207,1727044232487,-478.72215135,0.00012084,2]
[338902208,1727044232500,-1420.959246,0.00012084,2]
[338902209,1727044232518,-323.86162,0.00012084,2]
[338902210,1727044232529,-1525.1233529,0.00012084,2]
[338902211,1727044232540,-290.832,0.00012084,2]
[338902212,1727044232551,-631.04343679,0.00012084,2]
[338902238,1727044238987,-267.7675,0.00012075,2]
[338902243,1727044239962,-13224.2325,0.00012075,2]
[338902244,1727044239972,-528990.88382488,0.00012084,2]
[338902245,1727044239980,-287.81967508,0.00012085,2]
[338902246,1727044239990,-13762.97742713,0.00012085,2]
[338902247,1727044239999,-5348859.67922792,0.00012085,2]
[338902248,1727044240011,-214010.35979913,0.00012085,2]
[338902249,1727044240022,-552.33090042,0.00012085,2]
[338902250,1727044240033,-70119.49639663,0.00012085,2]
[338902251,1727044240057,-503.33,0.00012085,2]
[338902252,1727044240137,-429.15446819,0.00012085,2]
[338902253,1727044240151,-5227.0184741,0.00012085,2]
[338902254,1727044240162,-179184.21562081,0.00012085,2]
[338902255,1727044240173,-2439.14814662,0.00012085,2]
[338902256,1727044240216,-1147.0,0.00012075,2]
[338902257,1727044240226,-1249.58360006,0.00012085,2]
[338902258,1727044240237,-2394.14626979,0.00012085,2]
[338902259,1727044240248,-1572.66547362,0.00012085,2]
[338902499,1727044243017,-2961.33869141,0.00012085,2]
[338902500,1727044243029,-953.70061537,0.00012085,2]
[338902501,1727044243044,-2971.4261541,0.00012085,2]
[338902502,1727044243059,-1795.66259684,0.00012085,2]
[338902503,1727044243265,-3770.70534238,0.00012085,2]
[338902504,1727044243276,-20492.59590905,0.00012085,2]
[338902505,1727044243287,-1289.41102724,0.00012085,2]
[338902506,1727044243298,-680.06549859,0.00012085,2]
[338902507,1727044243309,-1012.97035628,0.00012085,2]
[338902508,1727044243320,-6837.24999967,0.00012085,2]
[338902509,1727044243331,-2851.5,0.00012085,2]
[338902568,1727044245962,-1131.90187909,0.00012085,2]
[338902570,1727044245974,-1144.25759762,0.00012085,2]
[338902577,1727044246034,-407.37144464,0.00012085,2]
[338902580,1727044246046,-389.71569304,0.00012085,2]
[338902582,1727044246059,-89270.32908214,0.00012085,2]
[338902584,1727044246073,-332.78,0.00012085,2]
[338902587,1727044246088,-290.929047,0.00012085,2]
[338902589,1727044246102,-1583.93695145,0.00012085,2]
[338902597,1727044246161,-1523.78274965,0.00012085,2]
[338902602,1727044246238,-529.5997487,0.00012085,2]
[338902604,1727044246249,-582.87825458,0.00012085,2]
[338902612,1727044248498,150.0,0.00011981,2]
[338902613,1727044255159,1000.0,0.00011836,2]
[338902614,1727044255384,500.0,8.249e-05,2]
[338902615,1727044257399,500.0,0.00010989,2]
[338902616,1727044273866,6135.2003,0.00011985,2]
[338902618,1727044275535,1930.1682,0.00011984,2]
[338902619,1727044276291,1764.4009,0.00011984,2]
[338902620,1727044296012,517.4302,0.00011981,2]
[338902621,1727044296243,170.54036843,0.00011985,2]
[338902622,1727044300839,250.0,0.00011693,2]
[338902623,1727044307333,283.4059,0.00011984,2]
[338902624,1727044347434,500.0,8.249e-05,2]
[338902625,1727044356594,250.0,0.00011669,2]
[338902626,1727044362159,1000.0,0.00011984,2]
[338902627,1727044363584,500.0,8.249e-05,2]
[338902628,1727044370713,250.0,0.00011686,2]
[338902629,1727044374642,753.18,0.00011686,2]
[338902630,1727044386925,500.0,8.249e-05,2]
[338902631,1727044388954,500.0,0.00010989,2]
[338902632,1727044413201,500.0,0.00011988,2]
[338902633,1727044416815,200.0,0.00011988,2]
[338902634,1727044446069,150.0,0.00022,120]
[338902635,1727044446967,150.0,0.00022,120]
[338902636,1727044447589,150.0,0.00022,120]
[338902637,1727044448507,150.0,0.00022,120]
[338902638,1727044449065,150.0,0.00022,120]
[338902639,1727044449747,150.0,0.00022,120]
[338902640,1727044454041,500.0,8.249e-05,2]
[338902641,1727044462097,150.0,0.00011872,2]
[338902642,1727044462446,150.0,0.00011917,2]
[338902643,1727044462495,268.79619324,0.00012017,2]
[338902644,1727044477567,186.23021433,0.00011985,2]
[338902645,1727044480097,500.0,8.249e-05,2]
[338902646,1727044480695,156.2770892,0.00011985,2]
[338902647,1727044503083,500.0,8.249e-05,2]
[338902648,1727044520969,159.87,0.00011595,2]
[338902649,1727044533347,4736.81002441,0.00011985,2]
[338902650,1727044549150,218.38,0.00011595,2]
[338902651,1727044552860,156.35,0.00010959,2]
[338902652,1727044569849,500.0,8.249e-05,2]
[338902653,1727044575586,274.97,9.162e-05,2]
[338902654,1727044576031,274.97,0.00011425,2]
[338902655,1727044578364,659.49,0.00011605,2]
[338902656,1727044594288,600.0,8.249e-05,2]
[338902657,1727044606824,193.68772911,0.00011985,2]
[338902658,1727044610490,500.0,8.249e-05,2]
[338902659,1727044611909,292.22,0.00011613,2]
[338902660,1727044628627,238.87,0.00011613,2]
[338902661,1727044713265,1000.0,0.00011624,2]
[338902662,1727044740721,1472.84,0.00011619,2]
[338902663,1727044750281,1548.95,0.00011619,2]
[338902664,1727044768484,1000.0,0.00011836,2]
[338902665,1727044793422,563.0,0.00011624,2]
[338902666,1727044806100,168.9,0.00012023,2]
[338902667,1727044837571,250.0,0.00011601,2]
[338902668,1727044882296,150.0,0.00011867,2]
[338902669,1727044882354,150.0,0.00011956,2]
[338902670,1727044882390,150.0,0.00011927,2]
[338902671,1727044904696,250.0,0.00011612,2]
[338902672,1727044914744,150.02062703,0.00011985,2]
[338902673,1727044930273,1100.24423802,0.00011959,2]
[338902674,1727044935252,1100.24423802,0.00011967,2]
[338902675,1727044940259,1100.24423802,0.00011975,2]
[338902676,1727044957756,186.2302143,0.00011985,2]
[338902678,1727045014006,760.52,0.00011537,2]
[338902684,1727045083949,154.0,0.00011352,2]
[338902685,1727045100973,158.27,0.00010959,2]
[338902686,1727045101857,300.0,0.0001203,2]
[338902687,1727045113499,263.01,9.418e-05,2]
[338902688,1727045113875,263.01,0.00011682,2]
[338902689,1727045114389,150.0,0.00010874,2]
[338902690,1727045122301,150.0,0.0001196,2]
[338902691,1727045122351,150.0,0.0001197,2]
[338902692,1727045183189,186.2302143,0.00011985,2]
[338902693,1727045183781,174.54,9.221e-05,2]
[338902694,1727045222712,500.0,8.249e-05,2]
[338902695,1727045224292,500.0,0.00010989,2]
[338902696,1727045236706,241.9434,0.00011981,2]
[338902697,1727045248599,542.58,0.00011086,2]
[338902698,1727045273581,308.36,0.00011518,2]
[338902699,1727045282030,150.0,0.0001203,2]
[338902700,1727045286862,150.0,0.00011931,2]
[338902702,1727045306472,200.0,0.00011537,2]
[338902703,1727045341228,300.0,0.0001203,2]
[338902704,1727045356999,200.0,0.00011086,2]
[338902705,1727045369606,250.0,0.00011551,2]
[338902706,1727045398767,186.2302143,0.00011985,2]
[338902707,1727045401189,300.0,0.0001203,2]
[338902708,1727045403236,168.9,0.00012021,2]
[338902709,1727045403282,1444.04604974,0.00011789,2]
[338902712,1727045432371,-799.0,0.00012031,2]
[338902715,1727045432382,-799.0,0.00012031,2]
[338902717,1727045432392,-799.0,0.00012031,2]
[338902719,1727045432402,-799.0,0.00012031,2]
[338902720,1727045432412,-799.0,0.00012031,2]
[338902722,1727045432422,-799.0,0.00012031,2]
[338902723,1727045432432,-799.0,0.00012031,2]
[338902724,1727045432441,-799.0,0.00012031,2]
[338902725,1727045432451,-228.4217913,0.00012031,2]
[338902733,1727045438298,-570.5782087,0.00012031,2]
[338902734,1727045438307,-670.4717913,0.00012031,2]
[338902735,1727045438399,-128.5282087,0.00012031,2]
[338902736,1727045438409,-150.0,0.00012055,2]
[338902737,1727045438418,-263.2636356,0.00012075,2]
[338902738,1727045438428,-45.7809557,0.00012075,2]
[338902739,1727045438504,-112.7490443,0.00012075,2]
[338902740,1727045438513,-217.841,0.00012081,2]
[338902741,1727045438523,-1549.0,0.00012081,2]
[338902742,1727045438532,-625.0,0.00012081,2]
[338902743,1727045438546,-448.0,0.00012081,2]
[338902744,1727045438555,-1262.0,0.00012081,2]
[338902745,1727045438564,-100.39012936,0.00012081,2]
[338902746,1727045438575,-832.60987064,0.00012081,2]
[338902747,1727045438584,-558.0,0.00012081,2]
[338902748,1727045438594,-1066.403,0.00012081,2]
[338902749,1727045438603,-88.9066627,0.00012081,2]
[338902750,1727045438614,-815.0,0.00012081,2]
[338902751,1727045438625,-1009.0933373,0.00012081,2]
[338902752,1727045438635,-150.0,0.00012081,2]
[338902753,1727045438644,-1063.90666269,0.00012081,2]
[338902754,1727045438655,-2141.49989508,0.00012081,2]
[338902811,1727045440248,-1064.4559759,0.00012081,2]
[338902813,1727045440262,-572.07797175,0.00012081,2]
[338902816,1727045440274,-1025.05949458,0.00012081,2]
[338902818,1727045440283,-1143.0,0.00012081,2]
[338902820,1727045440295,-3170.39369638,0.00012081,2]
[338902822,1727045440307,-900.71549999,0.00012081,2]
[338902833,1727045440405,-289.10683403,0.00012081,2]
[338902835,1727045440417,-9131.7839696,0.00012081,2]
[338902837,1727045440426,-944.2579684,0.00012084,2]
[338902839,1727045440436,-7069.26334489,0.00012084,2]
[338902841,1727045440448,-676.78766256,0.00012084,2]
[338902843,1727045440459,-1043.21965598,0.00012084,2]
[338902845,1727045440470,-753.84282131,0.00012084,2]
[338902847,1727045440481,-1978.30980926,0.00012084,2]
[338902850,1727045440493,-479.6557504,0.00012084,2]
[338902852,1727045440504,-344.62556429,0.00012084,2]
[338902883,1727045443176,-498.7999998,0.00012084,2]
[338902886,1727045443188,-2721.87978134,0.00012084,2]
[338902890,1727045443199,-4650.0,0.00012084,2]
[338902893,1727045443210,-1507.29,0.00012084,2]
[338902895,1727045443222,-6184.60973607,0.00012084,2]
[338902897,1727045443231,-2000.0,0.00012084,2]
[338902899,1727045443240,-5115.9012264,0.00012084,2]
[338902900,1727045443249,-9228.34169645,0.00012084,2]
[338902901,1727045443261,-5130.95572728,0.00012084,2]
[338902902,1727045443274,-2350.89459176,0.00012084,2]
[338902903,1727045443285,-12101.7552,0.00012084,2]
[338902904,1727045443299,-877.60613837,0.00012084,2]
[338902905,1727045443310,-666.41,0.00012084,2]
[338902906,1727045443321,-4027.00130018,0.00012084,2]
[338902907,1727045443332,-60017.04355512,0.00012084,2]
[338902908,1727045443346,-1039.9999,0.00012084,2]
[338902909,1727045443361,-34333.16477839,0.00012084,2]
[338902910,1727045443373,-127148.97774871,0.00012084,2]
[338902911,1727045443391,-1448.63415379,0.00012084,2]
[338902912,1727045443405,-1020.15215074,0.00012084,2]
[338902913,1727045443420,-1476.73818284,0.00012084,2]
[338902914,1727045443432,-4720.74530425,0.00012084,2]
[338902915,1727045443445,-1436.91278683,0.00012084,2]
[338902923,1727045446158,-19002.79823307,0.00012084,2]
[338902924,1727045446171,-4203.06257803,0.00012084,2]
[338902925,1727045446234,-1773.78954202,0.00012084,2]
[338902926,1727045446243,-191.88937738,0.00012085,2]
[338902927,1727045446253,-11010.65720126,0.00012085,2]
[338902928,1727045446264,-190900.52070689,0.00012085,2]
[338902929,1727045446379,-2242.12481964,0.00012085,2]
[338902930,1727045446390,-1590.32663591,0.00012085,2]
[338902931,1727045446522,-599.38775637,0.00012085,2]
[338902940,1727045472002,401.94,0.00011984,2]
[338902941,1727045477246,588.9124,0.00011984,2]
[338902942,1727045490355,1000.0,0.00011984,2]
[338902943,1727045497947,308.69755859,0.00011985,2]
[338902944,1727045501629,2122.6584,0.00011984,2]
[338902945,1727045541419,166.198302,0.00011985,2]
[338902946,1727045551590,2500.0,0.00011984,2]
[338902947,1727045559258,500.0,8.249e-05,2]
[338902948,1727045583348,1693.91986033,0.00011985,2]
[338902949,1727045586981,500.0,8.249e-05,2]
[338902950,1727045588578,600.0,0.00010989,2]
[338902951,1727045591666,500.0,8.249e-05,2]
[338902952,1727045614515,500.0,0.00011988,2]
[338902953,1727045614749,250.0,0.00011587,2]
[338902954,1727045619266,200.0,0.00011988,2]
[338902956,1727045637411,177.42,0.00010959,2]
[338902957,1727045698633,1050.0,0.00011,2]
[338902958,1727045699081,10234.27,0.00011609,2]
[338902959,1727045732246,176.9066,0.00011985,2]
[338902960,1727045775825,186.96,0.0001156,2]
[338902961,1727045785151,437.66,0.0001156,2]
[338902962,1727045827961,268.4,9.651e-05,2]
[338902963,1727045828302,268.4,0.00011915,2]
[338902964,1727045840296,28382.2038,0.00011984,2]
[338902965,1727045860515,840.0,0.0001158,2]
[338902966,1727045925373,206.84,0.00011286,2]
[338902967,1727045925403,43.16,0.00011286,2]
[338902968,1727046073659,106.84,0.00011985,2]
[338902969,1727046073682,150.0,0.00011985,2]
[338902970,1727046073704,150.0,0.00011985,2]
[338902971,1727046073727,294.88159728,0.00011985,2]
[338902972,1727046073749,192.82,0.00011985,2]
[338902973,1727046073778,629.98627699,0.00011985,2]
[338902974,1727046083705,150.0,0.00011293,2]
[338902975,1727046114797,250.0,0.00011245,2]
[338902976,1727046200575,150.0,0.00010959,2]
[338902977,1727046200601,32.82,0.00010959,2]
[338902978,1727046209409,120.76322223,0.00012,2]
[338902979,1727046209429,150.0,0.00012,2]
[338902980,1727046209459,38.95677777,0.00012,2]
[338902981,1727046212784,500.0,0.00011988,2]
[338902982,1727046224503,250.0,0.00011245,2]
[338902983,1727046297057,150.0,0.00012,2]
[338902984,1727046297079,299.12023641,0.00012,2]
[338902985,1727046297102,150.0,0.00012,2]
[338902986,1727046297130,396.93976359,0.00012,2]
[338902987,1727046302512,150.0,0.00010874,2]
[338902988,1727046323824,600.0,0.00012,2]
[338902989,1727046333490,153.58,0.00011227,2]
[338902990,1727046334643,302.02,0.00011227,2]
[338902991,1727046346818,150.0,0.00022,120]
[338902992,1727046347657,150.0,0.00022,120]
[338902993,1727046348568,150.0,0.00022,120]
[338902994,1727046349115,150.0,0.00022,120]
[338902995,1727046349920,150.0,0.00022,120]
[338902996,1727046350677,150.0,0.00022,120]
[338902997,1727046393256,150.0,0.00011227,2]
[338902998,1727046393280,150.0,0.00011227,2]
[338902999,1727046393303,13.53,0.00011227,2]
[338903000,1727046440112,136.47,8.249e-05,2]
[338903001,1727046440136,150.0,8.249e-05,2]
[338903002,1727046440165,56.35,8.249e-05,2]
[338903003,1727046441698,300.0,0.00010989,2]
[338903004,1727046453582,328.0,0.00011249,2]
[338903005,1727046481428,250.0,0.00011262,2]
[338903006,1727046548280,24.0,9.331e-05,2]
[338903007,1727046548302,250.0,9.331e-05,2]
[338903008,1727046548326,9.49,9.331e-05,2]
[338903009,1727046548652,140.51,0.00011595,2]
[338903010,1727046548673,142.98,0.00011595,2]
[338903011,1727046563884,7.02,0.00011985,2]
[338903012,1727046563910,253.15,0.00011985,2]
[338903013,1727046563935,1111.90508687,0.00011985,2]
[338903021,1727046632418,-677.75,0.00012068,2]
[338903022,1727046632428,-677.75,0.00012068,2]
[338903023,1727046632438,-677.75,0.00012071,2]
[338903024,1727046632449,-392.3191086,0.00012073,2]
[338903025,1727046632460,-1740.0,0.00012073,2]
[338903026,1727046632471,-3498.10131452,0.00012073,2]
[338903027,1727046632482,-2810.31557355,0.00012073,2]
[338903028,1727046632494,-1032.01313129,0.00012073,2]
[338903029,1727046632505,-871.5527439,0.00012073,2]
[338903030,1727046632516,-2737.33492461,0.00012073,2]
[338903031,1727046632527,-410.36320353,0.00012073,2]
[338903032,1727046632537,-150.0,0.00012073,2]
[338903033,1727046632547,-315.682,0.00012073,2]
[338903034,1727046632556,-151.561,0.00012073,2]
[338903035,1727046632567,-150.0,0.00012073,2]
[338903036,1727046632576,-409.74963344,0.00012074,2]
[338903037,1727046632587,-268.00036656,0.00012074,2]
[338903038,1727046632596,-677.75,0.00012074,2]
[338903039,1727046632606,-677.75,0.00012074,2]
[338903040,1727046632615,-677.75,0.00012074,2]
[338903041,1727046632624,-677.75,0.00012074,2]
[338903042,1727046632633,-677.75,0.00012074,2]
[338903044,1727046632643,-677.75,0.00012074,2]
[338903046,1727046632652,-677.75,0.00012074,2]
[338903048,1727046632661,-677.75,0.00012074,2]
[338903050,1727046632670,-677.75,0.00012074,2]
[338903052,1727046632680,-677.75,0.00012074,2]
[338903054,1727046632690,-677.75,0.00012074,2]
[338903056,1727046632700,-677.75,0.00012074,2]
[338903058,1727046632709,-167.89576093,0.00012074,2]
[338903060,1727046632721,-509.85423907,0.00012074,2]
[338903062,1727046632730,-677.75,0.00012074,2]
[338903064,1727046632739,-92.41008694,0.00012074,2]
[338903066,1727046632750,-250.33780553,0.00012074,2]
[338903067,1727046632761,-335.00210753,0.00012074,2]
[338903068,1727046632771,-164.59836855,0.00012074,2]
[338903069,1727046632783,-513.15163145,0.00012074,2]
[338903070,1727046632792,-162.39,0.00012075,2]
[338903071,1727046632801,-2909.42136035,0.00012078,5]
[338903072,1727046632812,-32710.09794508,0.00012078,5]
[338903073,1727046632822,-2162.6298545,0.00012078,2]
[338903074,1727046632832,-11765.4348804,0.00012078,2]
[338903075,1727046632841,-823.8509871,0.00012078,2]
[338903076,1727046632850,-150.0,0.00012081,2]
[338903077,1727046632860,-625.0,0.00012081,2]
[338903078,1727046632869,-512.209,0.00012081,2]
[338903079,1727046632878,-1549.0,0.00012081,2]
[338903080,1727046632887,-635.47165037,0.00012081,2]
[338903081,1727046632898,-297.52834963,0.00012081,2]
[338903082,1727046632908,-59.35272991,0.00012081,2]
[338903083,1727046632919,-498.64727009,0.00012081,2]
[338903084,1727046632928,-491.11230587,0.00012084,3]
[338903090,1727046638471,-276.14857609,0.00012084,3]
[338903091,1727046638481,-376.0213201,0.00012084,2]
[338903095,1727046638726,-118.8286799,0.00012084,2]
[338903096,1727046638735,-483.48,0.00012084,2]
[338903097,1727046638745,-1614.37156894,0.00012084,2]
[338903098,1727046638755,-385.62843106,0.00012084,2]
[338903099,1727046638764,-2701.73,0.00012084,2]
[338903100,1727046638774,-5410.36,0.00012084,2]
[338903101,1727046638784,-819.15,0.00012084,2]
[338903102,1727046638793,-1818.14118861,0.00012084,2]
[338903103,1727046638807,-1977.27881139,0.00012084,2]
[338903104,1727046638817,-33091.99808609,0.00012084,2]
[338903105,1727046638827,-1162.08593884,0.00012084,2]
[338903106,1727046638838,-28138.79926,0.00012084,2]
[338903107,1727046638849,-258.16604673,0.00012084,2]
[338903108,1727046638859,-283.83287331,0.00012084,2]
[338903109,1727046638870,-255.0,0.00012084,2]
[338903110,1727046638881,-1094.21,0.00012084,2]
[338903111,1727046638891,-4012.44382823,0.00012084,2]
[338903112,1727046638934,-1197.7017767,0.00012084,2]
[338903113,1727046638945,-3791.46814228,0.00012084,2]
[338903160,1727046640396,-2778.37187532,0.00012084,2]
[338903161,1727046640433,-4580.74187796,0.00012084,2]
[338903162,1727046640470,-3486.46701327,0.00012084,2]
[338903163,1727046640601,-2091.78488574,0.00012084,2]
[338903164,1727046640613,-522.77982189,0.00012084,2]
[338903195,1727046641033,10000.0,0.00011477,2]
[338903212,1727046643701,-3644.79219044,0.00012084,2]
[338903213,1727046643713,-500.0,0.00012084,2]
[338903214,1727046643724,-635.015997,0.00012084,2]
[338903219,1727046646543,-3205.18087699,0.00012084,2]
[338903221,1727046648583,150.0,0.00011876,2]
[338903222,1727046648617,150.0,0.00011948,2]
[338903223,1727046661149,150.0,0.0001197,2]
[338903224,1727046661170,150.0,0.0001197,2]
[338903225,1727046661191,150.0,0.0001197,2]
[338903226,1727046661212,150.0,0.0001197,2]
[338903227,1727046661234,150.0,0.0001197,2]
[338903228,1727046661255,150.0,0.0001197,2]
[338903229,1727046661276,150.0,0.0001197,2]
[338903230,1727046661296,150.0,0.0001197,2]
[338903231,1727046661317,150.0,0.0001197,2]
[338903232,1727046661337,150.0,0.0001197,2]
[338903233,1727046661359,150.0,0.0001197,2]
[338903234,1727046661379,150.0,0.0001197,2]
[338903235,1727046661404,4034.02264629,0.0001197,2]
[338903236,1727046683871,150.0,0.000119,2]
[338903237,1727046683896,150.0,0.000119,2]
[338903238,1727046683920,150.0,0.000119,2]
[338903239,1727046683944,150.0,0.000119,2]
[338903240,1727046683968,150.0,0.000119,2]
[338903241,1727046683993,150.0,0.000119,2]
[338903242,1727046684014,150.0,0.000119,2]
[338903243,1727046684037,298.33,0.000119,2]
[338903244,1727046684066,9142.327569,0.000119,2]
[338903245,1727046688931,500.0,0.00011985,2]
[338903246,1727046691165,308.69755859,0.00011985,2]
[338903247,1727046691818,150.0,0.00011955,2]
[338903248,1727046692043,150.0,0.00011866,2]
[338903249,1727046697282,1828.0556,0.00011985,2]
[338903250,1727046699761,150.0,0.00011921,2]
[338903251,1727046705224,158855.07910013,0.00011984,2]
[338903252,1727046705252,78681.54049987,0.00011984,2]
[338903253,1727046716956,1000.0,0.00011984,2]
[338903254,1727046722532,163.23,0.00010959,2]
[338903255,1727046728890,6451.65765116,0.00011477,2]
[338903256,1727046739070,7500.0,0.00011985,2]
[338903257,1727046741285,7048.5904,0.00011984,2]
[338903258,1727046745419,45538.009,0.00011985,2]
[338903259,1727046760644,179.43123906,0.00011985,2]
[338903260,1727046773543,600.0,8.249e-05,2]
[338903261,1727046780163,905.7611,0.00011985,2]
[338903262,1727046786529,177.82207341,0.00011985,2]
[338903263,1727046796825,250.0,0.0001159,2]
[338903264,1727046798115,952.9694,0.00011985,2]
[338903265,1727046800996,500.0,8.249e-05,2]
[338903266,1727046810256,306.3,0.00012,2]
[338903267,1727046812100,500.0,0.00011988,2]
[338903268,1727046816200,200.0,0.00011988,2]
[338903269,1727046839741,500.0,8.249e-05,2]
[338903270,1727046841414,150.0,0.00011643,2]
[338903271,1727046846871,321.72,0.0001159,2]
[338903272,1727046848402,865.634,0.00011985,2]
[338903273,1727046853533,803.0551,0.00011985,2]
[338903274,1727046880932,179.43123906,0.00011985,2]
[338903275,1727046883970,500.0,0.00011085,2]
[338903276,1727046884120,500.0,0.00011085,2]
[338903277,1727046885136,500.0,0.00011085,2]
[338903278,1727046885885,500.0,0.00011085,2]
[338903279,1727046886001,500.0,0.00011085,2]
[338903280,1727046886636,553.2,0.00011085,2]
[338903281,1727046886753,522.37,0.00011085,2]
[338903282,1727046897266,1014.02,0.00012,2]
[338903283,1727046915543,5916.8581,0.00011984,2]
[338903284,1727046918796,2346.75814,0.00011985,2]
[338903285,1727046943861,170.92,9.266e-05,2]
[338903286,1727046952447,500.0,0.00011085,2]
[338903287,1727046961149,156.10988812,0.00011985,2]
[338903288,1727046962307,369.09,0.00011574,2]
[338903289,1727046977495,200.0,0.0001201,2]
[338903290,1727046977819,200.0,0.0001182,2]
[338903291,1727046978136,200.0,0.0001163,2]
[338903292,1727046978442,200.0,0.0001145,2]
[338903294,1727047003568,3413.4275,0.00011984,2]
[338903296,1727047013773,323.50557523,0.00012,2]
[338903298,1727047054007,1564.50542666,0.00011985,2]
[338903299,1727047054322,1238.11357821,0.00011985,2]
[338903300,1727047065995,740.0578,0.00011984,2]
[338903301,1727047076496,2001.99,0.0001203,2]
[338903302,1727047083943,1000.0,0.00011535,2]
[338903303,1727047115303,1290.0691,0.00011984,2]
[338903304,1727047119523,180.9052709,0.00011985,2]
[338903305,1727047140601,1000.0,0.00011836,2]
[338903306,1727047168363,250.0,0.00011543,2]
[338903307,1727047180774,333.95,9.625e-05,2]
[338903308,1727047181157,333.95,0.00011889,2]
[338903309,1727047189224,1043.00361778,0.00011985,2]
[338903310,1727047202442,150.0,0.00011889,2]
[338903311,1727047202688,150.0,0.00011889,2]
[338903312,1727047202872,150.0,0.00011889,2]
[338903313,1727047203116,150.0,0.00011889,2]
[338903314,1727047203371,150.0,0.00011889,2]
[338903315,1727047203743,150.0,0.00011889,2]
[338903316,1727047203782,150.0,0.00011889,2]
[338903317,1727047203995,150.0,0.00011889,2]
[338903318,1727047204195,150.0,0.00011889,2]
[338903319,1727047204396,150.0,0.00011889,2]
[338903320,1727047204639,150.0,0.00011889,2]
[338903321,1727047204867,150.0,0.00011889,2]
[338903322,1727047205097,150.0,0.00011889,2]
[338903323,1727047205305,150.0,0.00011889,2]
[338903324,1727047205542,154.67203195,0.00011889,2]
[338903325,1727047223457,150.0,0.00012,2]
[338903326,1727047264783,268.23,0.00011256,2]
[338903327,1727047273762,156.35,0.00010959,2]
[338903328,1727047282221,287.66835123,0.00011914,2]
[338903329,1727047324499,695.33574518,0.00011985,2]
[338903330,1727047342412,150.0,0.00011878,2]
[338903331,1727047342462,150.0,0.00011851,2]
[338903332,1727047395094,170.32805887,0.00011985,2]
[338903333,1727047409135,304.04,0.00012,2]
[338903334,1727047413890,500.0,0.00011988,2]
[338903335,1727047417764,150.0,0.00022,120]
[338903336,1727047418535,150.0,0.00022,120]
[338903337,1727047419602,150.0,0.00022,120]
[338903338,1727047420041,150.0,0.00022,120]
[338903339,1727047420866,150.0,0.00022,120]
[338903340,1727047421617,150.0,0.00022,120]
[338903341,1727047424291,153.19,0.0001155,2]
[338903342,1727047459664,463.55716346,0.00011985,2]
[338903343,1727047495387,1010.64,0.00012,2]
[338903344,1727047503563,1050.0,0.00011,2]
[338903345,1727047514561,150.0,0.00010874,2]
[338903346,1727047514909,150.0,0.00011277,2]
[338903347,1727047515251,150.0,0.00011679,2]